bitfinex-derivatives/quotes_SOLF0:USTF0_20250928
["timestamp","ask_amount","ask_price","bid_price","bid_amount"]
[1759029672231,7.49,201.65,201.61,4.4614]
[1759029672627,7.49,201.65,201.62,7.62]
[1759029672834,7.49,201.65,201.61,4.4614]
[1759029673232,7.49,201.65,201.62,7.62]
[1759029673430,7.49,201.66,201.62,7.62]
[1759029673936,4.4603,201.67,201.62,7.62]
[1759029674331,7.49,201.66,201.62,7.62]
[1759029674635,4.4603,201.67,201.62,7.62]
[1759029674836,7.49,201.65,201.62,7.62]
[1759029675032,4.4606,201.66,201.62,7.62]
[1759029675238,7.49,201.65,201.6,5.57122048]
[1759029675641,7.49,201.64,201.6,7.62]
[1759029675934,4.4607,201.65,201.6,7.62]
[1759029676136,7.49,201.64,201.6,7.62]
[1759029676333,4.4607,201.65,201.6,7.62]
[1759029676538,8.70167974,201.64,201.59,5.57122048]
[1759029676835,7.49,201.59,201.55,5.57122048]
[1759029677031,8.70167974,201.59,201.54,5.57122048]
[1759029677231,8.70167974,201.59,201.51,5.57122048]
[1759029677432,8.70167974,201.59,201.5,7.62]
[1759029677734,7.49,201.54,201.5,7.62]
[1759029677934,7.49,201.54,201.47,7.62]
[1759029679236,5.67497974,201.53,201.47,7.62]
[1759029679437,7.49,201.5,201.42,7.62]
[1759029679736,1.21167974,201.51,201.42,22.70775453]
[1759029679938,8.70167974,201.53,201.43,8.83167974]
[1759029680541,8.70167974,201.53,201.44,4.4651]
[1759029680742,8.70167974,201.53,201.45,7.62]
[1759029684138,8.92167974,201.51,201.45,7.62]
[1759029684647,7.71,201.51,201.45,7.62]
[1759029691742,7.71,201.51,201.46,4.4648]
[1759029692141,7.71,201.51,201.47,7.91]
[1759029692341,7.71,201.51,201.46,4.4648]
[1759029692543,7.71,201.53,201.47,7.91]
[1759029693844,12.1734,201.53,201.47,7.91]
[1759029697546,4.4637,201.52,201.47,7.91]
[1759029697742,4.4637,201.52,201.44,4.4652]
[1759029698050,7.71,201.53,201.44,12.3752]
[1759029698452,1.89635253,201.54,201.44,12.3752]
[1759029699459,12.1742,201.49,201.43,7.91]
[1759029701358,7.71,201.49,201.43,7.91]
[1759029703155,12.1742,201.49,201.43,7.91]
[1759029703359,7.71,201.49,201.43,7.91]
[1759029703561,7.71,201.52,201.45,7.91]
[1759029704060,12.1737,201.52,201.45,7.91]
[1759029706458,7.71,201.52,201.45,7.91]
[1759029708567,4.4642,201.5,201.45,7.91]
[1759029708867,12.1742,201.5,201.44,7.91]
[1759029710866,7.71,201.55,201.45,7.91]
[1759029712969,7.71,201.55,201.47,7.91]
[1759029713569,7.71,201.55,201.49,4.464]
[1759029713966,7.71,201.55,201.5,7.4]
[1759029714266,7.71,201.55,201.49,4.464]
[1759029714668,7.71,201.55,201.5,7.4]
[1759029714969,7.71,201.55,201.49,4.464]
[1759029715265,7.71,201.55,201.5,7.4]
[1759029716070,7.71,201.55,201.49,4.464]
[1759029716573,7.71,201.55,201.5,7.4]
[1759029716763,7.71,201.55,201.47,69.4498]
[1759029717066,5.12942505,201.58,201.51,7.4]
[1759029718164,0.66722505,201.58,201.52,7.4]
[1759029718566,7.49,201.64,201.52,7.4]
[1759029718761,7.49,201.62,201.52,7.4]
[1759029719170,11.9513,201.62,201.55,7.4]
[1759029720273,7.49,201.62,201.55,7.4]
[1759029722074,7.49,201.64,201.58,7.4]
[1759029722285,7.49,201.67,201.58,7.4]
[1759029722573,7.49,201.67,201.59,4.4619]
[1759029722770,7.49,201.67,201.58,7.4]
[1759029723586,76.8792,201.65,201.53,7.4]
[1759029723878,7.49,201.63,201.53,7.4]
[1759029724672,7.49,201.6,201.53,11.8632]
[1759029724874,7.49,201.6,201.53,7.4]
[1759029725174,11.9519,201.6,201.53,7.4]
[1759029725676,7.49,201.6,201.53,7.4]
[1759029726668,4.4622,201.58,201.53,7.4]
[1759029726874,7.49,201.57,201.53,7.4]
[1759029728587,4.4622,201.58,201.53,7.4]
[1759029729083,7.49,201.57,201.53,7.4]
[1759029729382,11.9526,201.57,201.5,7.75]
[1759029731581,11.9526,201.57,201.5,12.2139]
[1759029731786,7.49,201.57,201.51,7.75]
[1759029733788,7.98,201.54,201.48,12.2143]
[1759029733982,7.98,201.54,201.49,7.75]
[1759029734183,7.98,201.54,201.48,4.4643]
[1759029734883,1.89635253,201.6,201.49,7.75]
[1759029734884,7.98,201.56,201.49,7.75]
[1759029735386,4.463,201.55,201.45,12.2148]
[1759029735889,7.98,201.54,201.46,7.75]
[1759029737782,7.98,201.54,201.47,4.4645]
[1759029739186,7.98,201.54,201.46,7.75]
[1759029741191,7.98,201.54,201.46,12.2147]
[1759029741685,7.98,201.54,201.47,4.4645]
[1759029743095,12.4424,201.57,201.45,7.75]
[1759029743392,7.98,201.57,201.48,7.78]
[1759029744692,7.98,201.57,201.52,7.78]
[1759029745185,7.98,201.57,201.51,4.4635]
[1759029745585,7.98,201.57,201.5,7.78]
[1759029746594,1.21319374,201.55,201.5,7.78]
[1759029746886,7.36,201.54,201.5,7.78]
[1759029747079,7.36,201.54,201.45,1.21319374]
[1759029747080,7.36,201.54,201.46,7.78]
[1759029748585,4.4634,201.53,201.46,7.78]
[1759029748985,7.36,201.52,201.46,7.78]
[1759029749295,7.36,201.52,201.46,12.2447]
[1759029750586,7.36,201.51,201.42,7.78]
[1759029750989,7.36,201.51,201.44,7.78]
[1759029751293,7.36,201.51,201.45,4.4649]
[1759029751690,7.36,201.54,201.44,7.78]
[1759029752588,7.36,201.54,201.47,4.4645]
[1759029752790,7.36,201.54,201.47,12.2445]
[1759029754092,4.4625,201.57,201.48,7.78]
[1759029754291,11.8225,201.57,201.48,7.78]
[1759029754893,4.4628,201.56,201.48,12.2443]
[1759029755189,7.36,201.55,201.48,12.2443]
[1759029758193,8.57319374,201.55,201.48,7.78]
[1759029758497,8.57319374,201.52,201.46,4.4648]
[1759029758989,8.57319374,201.52,201.45,7.78]
[1759029760598,4.4638,201.51,201.45,7.78]
[1759029760799,1.21319374,201.49,201.45,7.78]
[1759029760997,1.21319374,201.49,201.42,4.4657]
[1759029761295,8.57319374,201.49,201.43,7.78]
[1759029761600,4.4644,201.48,201.42,12.2457]
[1759029762597,8.57319374,201.49,201.42,12.2457]
[1759029763399,8.57319374,201.49,201.43,4.4654]
[1759029764399,7.36,201.49,201.44,4.4651]
[1759029764599,7.36,201.49,201.45,7.78]
[1759029765196,4.4641,201.5,201.45,7.78]
[1759029765692,7.36,201.49,201.45,7.78]
[1759029767702,7.36,201.49,201.43,4.4654]
[1759029768403,7.36,201.49,201.43,12.2454]
[1759029771303,8.57319374,201.49,201.43,12.2454]
[1759029774904,8.57319374,201.49,201.43,4.4654]
[1759029775206,8.57319374,201.49,201.44,7.59]
[1759029775401,8.57319374,201.49,201.43,4.4654]
[1759029775701,8.57319374,201.49,201.44,7.59]
[1759029776205,8.57319374,201.49,201.43,4.4654]
[1759029776405,1.21319374,201.49,201.43,4.4654]
[1759029776594,1.21319374,201.49,201.44,7.59]
[1759029776795,1.21319374,201.49,201.43,4.4654]
[1759029776997,9.27319374,201.49,201.44,7.59]
[1759029777195,9.27319374,201.49,201.43,4.4654]
[1759029777697,9.27319374,201.49,201.43,12.0554]
[1759029781908,8.06,201.48,201.43,7.59]
[1759029782405,5.67749374,201.49,201.43,7.59]
[1759029782612,8.06,201.48,201.43,7.59]
[1759029783101,5.67749374,201.49,201.43,7.59]
[1759029783907,1.21319374,201.46,201.41,4.4659]
[1759029784110,1.21319374,201.46,201.41,7.59]
[1759029784313,8.06,201.45,201.41,7.59]
[1759029785017,1.21319374,201.46,201.41,7.59]
[1759029785215,8.06,201.45,201.39,7.59]
[1759029785722,69.4234,201.55,201.39,84.14372857]
[1759029785924,1.21319374,201.49,201.43,4.4654]
[1759029786105,9.27319374,201.49,201.43,12.0554]
[1759029786310,8.06,201.49,201.44,4.4651]
[1759029786511,9.27319374,201.49,201.45,7.59]
[1759029786711,1.21319374,201.52,201.44,1.21319374]
[1759029787005,8.06,201.53,201.49,7.59]
[1759029787718,8.06,201.53,201.48,4.4642]
[1759029787918,8.06,201.53,201.49,7.59]
[1759029788220,8.06,201.57,201.48,8.80319374]
[1759029789817,8.06,201.57,201.51,12.6136]
[1759029790514,8.85319374,201.6,201.53,8.15]
[1759029790718,3.45009877,201.59,201.53,8.15]
[1759029790916,8.85319374,201.6,201.53,8.15]
[1759029791114,3.45009906,201.59,201.53,8.15]
[1759029791315,8.85319374,201.6,201.53,8.15]
[1759029792719,8.85319374,201.6,201.54,4.4629]
[1759029795819,8.85319374,201.6,201.53,8.15]
[1759029802818,13.31509374,201.6,201.53,8.15]
[1759029806530,12.1019,201.6,201.53,8.15]
[1759029807020,12.1019,201.6,201.53,12.6132]
[1759029809925,12.3313,201.63,201.53,8.06]
[1759029811232,7.87,201.63,201.53,8.06]
[1759029811426,1.8946326,201.6,201.48,8.06]
[1759029811625,7.87,201.59,201.48,8.06]
[1759029812726,4.4624,201.58,201.49,4.4641]
[1759029812923,7.87,201.57,201.5,8.06]
[1759029814634,4.4628,201.56,201.5,8.06]
[1759029814830,7.87,201.55,201.5,8.06]
[1759029815026,4.4628,201.56,201.5,8.06]
[1759029815226,12.3328,201.56,201.5,8.06]
[1759029818637,12.3328,201.56,201.5,12.5238]
[1759029821038,7.87,201.55,201.5,12.5238]
[1759029821231,4.4628,201.56,201.5,12.5238]
[1759029821530,4.4628,201.56,201.5,4.4638]
[1759029821730,7.87,201.55,201.51,8.06]
[1759029821932,4.4628,201.56,201.51,8.06]
[1759029822133,7.87,201.55,201.51,8.06]
[1759029822336,7.87,201.55,201.52,8.06]
[1759029822536,7.87,201.58,201.49,8.06]
[1759029823035,7.87,201.58,201.52,12.5234]
[1759029825141,7.87,201.58,201.52,8.06]
[1759029825636,4.4625,201.57,201.52,8.06]
[1759029825835,7.87,201.56,201.52,8.06]
[1759029826036,7.87,201.56,201.48,8.06]
[1759029826443,4.462,201.59,201.49,8.06]
[1759029827540,4.462,201.59,201.52,4.4634]
[1759029827742,4.462,201.59,201.53,8.06]
[1759029829640,7.87,201.58,201.52,12.5234]
[1759029830135,71.2907326,201.63,201.49,8.06]
[1759029830136,9.7646326,201.6,201.49,8.06]
[1759029830334,7.87,201.58,201.49,8.06]
[1759029831438,1.8946326,201.6,201.49,8.06]
[1759029831642,11.30489843,201.59,201.49,8.06]
[1759029831840,7.87,201.57,201.49,8.06]
[1759029832030,7.87,201.55,201.49,8.06]
[1759029832535,12.333,201.55,201.49,8.06]
[1759029837045,12.333,201.55,201.49,12.524]
[1759029837249,7.87,201.55,201.49,8.06]
[1759029838043,4.462,201.59,201.51,4.4636]
[1759029838238,4.462,201.59,201.52,7.39]
[1759029838239,3.43511811,201.58,201.52,7.39]
[1759029838548,12.182,201.59,201.52,11.8533]
[1759029838849,12.182,201.59,201.49,7.39]
[1759029839550,12.182,201.59,201.53,4.4631]
[1759029839756,7.72,201.58,201.53,4.4631]
[1759029840049,7.72,201.58,201.54,7.39]
[1759029841554,12.1816,201.61,201.55,11.8528]
[1759029841741,7.72,201.59,201.56,7.39]
[1759029841944,7.72,201.6,201.53,11.8532]
[1759029843652,4.4619,201.6,201.53,11.8532]
[1759029843949,7.72,201.59,201.53,11.8532]
[1759029844344,12.1821,201.59,201.53,7.39]
[1759029844541,7.72,201.59,201.49,7.39]
[1759029845655,4.4623,201.58,201.5,4.4638]
[1759029845951,7.72,201.57,201.51,7.39]
[1759029846346,7.72,201.57,201.51,11.8536]
[1759029846652,7.72,201.57,201.47,120.30126333]
[1759029846653,7.72,201.57,201.52,7.39]
[1759029846849,4.4618,201.6,201.51,7.39]
[1759029847548,7.72,201.61,201.55,7.39]
[1759029848756,7.72,201.61,201.55,11.8527]
[1759029849951,7.72,201.61,201.56,4.4625]
[1759029850354,7.72,201.61,201.57,7.91]
[1759029851146,7.72,201.61,201.56,4.4625]
[1759029851553,7.72,201.61,201.57,7.91]
[1759029851952,12.1207,201.65,201.59,7.91]
[1759029854150,12.1207,201.65,201.56,12.3725]
[1759029854355,4.4607,201.65,201.56,12.3725]
[1759029854556,7.66,201.64,201.56,12.3725]
[1759029857370,69.3849,201.66,201.56,7.91]
[1759029857564,11.08612459,201.65,201.56,7.91]
[1759029857766,7.66,201.65,201.56,7.91]
[1759029858571,4.4614,201.62,201.56,7.91]
[1759029858871,12.1214,201.62,201.55,12.3727]
[1759029859873,12.1208,201.65,201.56,7.91]
[1759029860072,7.66,201.65,201.56,7.91]
[1759029861575,4.4612,201.63,201.56,7.91]
[1759029861876,7.66,201.62,201.56,7.91]
[1759029862772,12.1215,201.62,201.56,7.91]
[1759029863978,7.66,201.62,201.56,12.3725]
[1759029864172,7.66,201.62,201.53,8.02]
[1759029864875,4.4612,201.63,201.58,8.02]
[1759029865081,7.77,201.62,201.53,8.02]
[1759029866579,4.4619,201.6,201.53,8.02]
[1759029866779,12.2319,201.6,201.53,8.02]
[1759029867171,12.2319,201.6,201.53,12.4831]
[1759029868583,13.44449318,201.6,201.53,12.4831]
[1759029874478,7.77,201.59,201.53,8.02]
[1759029875581,4.4623,201.58,201.51,5.67619318]
[1759029875776,4.4623,201.58,201.52,8.02]
[1759029875777,12.2323,201.58,201.52,8.02]
[1759029879585,4.4625,201.57,201.52,8.02]
[1759029879886,7.77,201.56,201.52,8.02]
[1759029880086,12.2325,201.57,201.51,12.4836]
[1759029880682,12.2325,201.57,201.51,4.4636]
[1759029880884,7.77,201.57,201.53,8.02]
[1759029881381,7.77,201.57,201.52,4.4634]
[1759029882381,7.77,201.57,201.53,8.02]
[1759029882581,7.77,201.57,201.52,4.4634]
[1759029882884,7.77,201.57,201.53,8.02]
[1759029883081,7.77,201.57,201.52,4.4634]
[1759029884086,7.77,201.57,201.53,8.02]
[1759029884284,7.77,201.57,201.52,4.4634]
[1759029884685,7.77,201.57,201.53,8.02]
[1759029884884,8.98259318,201.58,201.52,12.4834]
[1759029885190,7.77,201.58,201.52,12.4834]
[1759029888093,12.2323,201.58,201.52,8.02]
[1759029891397,12.2323,201.58,201.52,12.4834]
[1759029896902,7.41,201.59,201.51,1.21259318]
[1759029897201,7.41,201.59,201.52,7.8]
[1759029897400,13.08399318,201.62,201.55,4.4627]
[1759029897603,7.41,201.6,201.56,7.8]
[1759029897998,7.41,201.6,201.55,4.4627]
[1759029898207,7.41,201.6,201.56,7.8]
[1759029898406,7.41,201.6,201.55,4.4627]
[1759029898607,7.41,201.6,201.56,7.8]
[1759029899007,5.67399318,201.62,201.55,4.4627]
[1759029899208,3.43619518,201.61,201.55,4.4627]
[1759029899409,13.08399318,201.62,201.56,7.8]
[1759029899603,3.43681069,201.61,201.55,4.4627]
[1759029899908,13.08399318,201.62,201.56,7.8]
[1759029900210,3.43681039,201.61,201.56,7.8]
[1759029900415,13.08399318,201.62,201.56,7.8]
[1759029900705,3.43735409,201.61,201.55,4.4627]
[1759029900907,13.08399318,201.62,201.56,7.8]
[1759029901102,10.84735532,201.61,201.55,4.4627]
[1759029901302,5.67399318,201.62,201.55,4.4627]
[1759029901498,3.43807438,201.61,201.56,7.8]
[1759029901698,4.4614,201.62,201.57,7.8]
[1759029902203,4.4614,201.62,201.56,4.4625]
[1759029902403,11.8714,201.62,201.57,7.8]
[1759029902598,7.41,201.61,201.57,7.8]
[1759029902804,7.41,201.61,201.56,4.4625]
[1759029903005,7.41,201.61,201.57,7.8]
[1759029903602,4.4614,201.62,201.56,4.4625]
[1759029903810,11.8714,201.62,201.56,12.2625]
[1759029904402,7.41,201.61,201.56,7.8]
[1759029904909,5.67399318,201.62,201.56,7.8]
[1759029905500,7.41,201.61,201.56,7.8]
[1759029906412,5.67399318,201.62,201.56,7.8]
[1759029907612,7.41,201.61,201.56,7.8]
[1759029907812,5.67399318,201.62,201.56,7.8]
[1759029908012,13.08399318,201.62,201.56,7.8]
[1759029909408,7.54,201.6,201.56,7.8]
[1759029909601,4.4617,201.61,201.56,7.8]
[1759029909803,7.54,201.61,201.56,7.8]
[1759029910614,4.4619,201.6,201.56,7.8]
[1759029911210,7.54,201.59,201.53,4.4632]
[1759029911511,7.54,201.59,201.54,8.13]
[1759029911708,7.54,201.59,201.55,8.13]
[1759029911908,7.54,201.59,201.54,4.4629]
[1759029912109,7.54,201.59,201.55,8.13]
[1759029912302,7.54,201.59,201.54,4.4629]
[1759029912705,7.54,201.59,201.55,8.13]
[1759029912915,7.54,201.59,201.54,4.4629]
[1759029913109,7.54,201.59,201.55,8.13]
[1759029913811,7.54,201.59,201.54,4.4629]
[1759029914013,7.54,201.59,201.55,8.13]
[1759029914408,7.54,201.59,201.55,4.4627]
[1759029915611,7.54,201.59,201.56,8.13]
[1759029916110,7.54,201.59,201.55,4.4627]
[1759029916518,7.54,201.59,201.56,8.13]
[1759029917313,7.54,201.59,201.55,4.4627]
[1759029917517,7.54,201.59,201.56,8.13]
[1759029917717,7.54,201.59,201.55,4.4627]
[1759029918311,7.54,201.59,201.56,8.13]
[1759029918519,7.54,201.59,201.55,4.4627]
[1759029918824,7.54,201.59,201.56,8.13]
[1759029919011,7.54,201.59,201.55,4.4627]
[1759029919217,7.54,201.59,201.56,8.13]
[1759029919616,5.67399318,201.62,201.56,8.13]
[1759029919921,13.21399318,201.62,201.56,8.13]
[1759029923022,13.21399318,201.62,201.56,12.5924]
[1759029923322,12.0014,201.62,201.56,12.5924]
[1759029924026,7.54,201.62,201.58,7.77]
[1759029924323,7.54,201.62,201.57,4.4622]
[1759029924518,7.54,201.62,201.57,5.67479318]
[1759029925020,7.54,201.62,201.58,7.77]
[1759029925217,7.69,201.66,201.59,7.77]
[1759029925723,7.69,201.64,201.59,7.77]
[1759029926124,7.69,201.65,201.59,7.77]
[1759029926627,12.1508,201.65,201.59,7.77]
[1759029928421,7.69,201.63,201.59,7.77]
[1759029928623,7.69,201.64,201.59,7.77]
[1759029928822,4.4608,201.65,201.59,7.77]
[1759029929025,7.69,201.63,201.59,7.77]
[1759029929323,7.69,201.64,201.59,7.77]
[1759029930026,4.4608,201.65,201.59,7.77]
[1759029930230,7.69,201.63,201.59,7.77]
[1759029930527,7.69,201.64,201.59,7.77]
[1759029931025,4.4608,201.65,201.59,7.77]
[1759029931218,7.69,201.63,201.59,7.77]
[1759029931422,4.4608,201.65,201.59,7.77]
[1759029931623,3.43125447,201.64,201.59,7.77]
[1759029931823,7.69,201.64,201.59,7.77]
[1759029932024,4.4608,201.65,201.59,7.77]
[1759029932223,3.43140924,201.64,201.59,7.77]
[1759029932423,4.4608,201.65,201.59,7.77]
[1759029932621,7.69,201.63,201.56,7.77]
[1759029932926,7.69,201.63,201.55,7.77]
[1759029933731,4.4619,201.6,201.55,7.77]
[1759029934036,4.4619,201.6,201.54,4.4629]
[1759029934232,4.4619,201.6,201.55,7.77]
[1759029934432,7.69,201.59,201.54,4.4629]
[1759029934823,7.69,201.59,201.56,7.77]
[1759029935528,12.1514,201.62,201.56,7.77]
[1759029942639,4.4617,201.61,201.56,7.77]
[1759029943546,7.69,201.6,201.56,7.77]
[1759029943949,4.4617,201.61,201.56,7.77]
[1759029944345,7.69,201.6,201.56,7.77]
[1759029944539,4.4617,201.61,201.56,7.77]
[1759029944941,7.69,201.6,201.56,7.77]
[1759029945141,12.1517,201.61,201.55,12.2327]
[1759029953153,12.1517,201.61,201.55,4.4627]
[1759029953548,12.1517,201.61,201.56,7.54]
[1759029954052,7.69,201.61,201.56,7.54]
[1759029954255,7.38,201.62,201.56,7.54]
[1759029955844,11.8414,201.62,201.56,7.54]
[1759029958762,3.43535345,201.61,201.54,14.75148912]
[1759029959055,7.38,201.64,201.53,12.0032]
[1759029959257,7.38,201.62,201.54,7.54]
[1759029959453,7.38,201.6,201.54,7.54]
[1759029960461,11.8418,201.6,201.54,7.54]
[1759029960960,7.38,201.6,201.51,7.54]
[1759029961262,7.38,201.58,201.51,7.54]
[1759029962552,4.4626,201.57,201.51,7.54]
[1759029963052,7.38,201.56,201.51,7.54]
[1759029963959,7.38,201.56,201.5,12.0039]
[1759029965160,7.38,201.56,201.5,26.78956421]
[1759029966867,11.8428,201.56,201.5,22.32566421]
[1759029970768,7.38,201.56,201.5,19.24946421]
[1759029970972,7.71,201.57,201.51,7.84]
[1759029971874,7.71,201.6,201.53,7.84]
[1759029973177,12.1719,201.6,201.53,12.3031]
[1759029973372,12.1719,201.6,201.54,7.84]
[1759029973576,7.71,201.63,201.54,7.84]
[1759029973777,7.71,201.63,201.57,7.84]
[1759029974671,7.71,201.63,201.57,12.3023]
[1759029977884,12.1712,201.63,201.57,12.3023]
[1759029978180,7.71,201.63,201.55,4.4628]
[1759029979670,7.71,201.61,201.55,4.4628]
[1759029979876,7.71,201.61,201.54,128.08]
[1759029980383,4.4619,201.6,201.54,128.08]
[1759029985590,4.4619,201.6,201.55,8.13]
[1759029985792,12.3519,201.6,201.54,120.24]
[1759029985989,12.3519,201.6,201.55,8.13]
[1759029986193,4.4619,201.6,201.54,120.24]
[1759029986389,7.89,201.58,201.52,8.13]
[1759029987295,71.30614163,201.58,201.48,85.87012375]
[1759029987594,11.31694441,201.57,201.48,8.13]
[1759029987793,7.89,201.57,201.48,8.13]
[1759029988593,5.67674433,201.53,201.48,8.13]
[1759029988797,13.56674433,201.53,201.46,8.13]
[1759029988985,9.10334433,201.53,201.46,8.13]
[1759029989784,4.4636,201.52,201.46,8.13]
[1759029990594,9.10334433,201.53,201.46,8.13]
[1759029991196,13.56674433,201.53,201.46,8.13]
[1759029992684,7.89,201.53,201.47,8.13]
[1759029992891,13.56624433,201.55,201.47,8.13]
[1759029993586,13.56624433,201.55,201.48,8.13]
[1759029994602,4.4632,201.54,201.48,8.13]
[1759029994893,7.89,201.53,201.47,4.4644]
[1759029995098,7.89,201.53,201.47,12.5944]
[1759029998098,7.89,201.53,201.47,4.4644]
[1759029998397,7.89,201.53,201.49,8.13]
[1759029998598,7.89,201.53,201.48,4.4642]
[1759029999001,7.89,201.53,201.49,8.13]
[1759029999693,7.89,201.53,201.48,4.4642]
[1759030000192,7.89,201.53,201.47,8.13]
[1759030000799,7.89,201.53,201.47,12.5945]
[1759030000996,7.89,201.53,201.47,4.4645]
[1759030001595,7.89,201.53,201.48,8.13]
[1759030001994,7.89,201.53,201.47,4.4645]
[1759030002396,13.56654433,201.54,201.48,8.13]
[1759030015108,13.56654433,201.54,201.47,4.4645]
[1759030015109,4.4634,201.53,201.47,4.4645]
[1759030015613,12.0534,201.53,201.48,7.66]
[1759030015910,4.4634,201.53,201.47,4.4645]
[1759030016112,12.0534,201.53,201.47,12.1245]
[1759030023715,7.59,201.53,201.48,4.4643]
[1759030024022,7.59,201.54,201.48,4.4643]
[1759030024314,4.4629,201.55,201.48,4.4643]
[1759030024516,7.59,201.54,201.49,7.66]
[1759030024720,4.4629,201.55,201.48,4.4643]
[1759030025220,7.59,201.54,201.48,12.1243]
[1759030027725,7.59,201.54,201.49,4.4641]
[1759030028025,7.59,201.54,201.5,7.66]
[1759030028221,7.59,201.54,201.49,1.21334433]
[1759030028615,7.59,201.54,201.5,7.66]
[1759030028820,7.59,201.54,201.49,1.21334433]
[1759030029016,7.59,201.54,201.5,7.66]
[1759030029222,7.59,201.54,201.5,7.54]
[1759030029424,7.59,201.54,201.49,1.21334433]
[1759030029626,7.59,201.54,201.51,7.54]
[1759030030121,7.59,201.54,201.5,4.4638]
[1759030030523,7.59,201.54,201.51,7.54]
[1759030030828,7.59,201.54,201.5,4.4638]
[1759030031122,7.59,201.54,201.51,7.54]
[1759030031328,4.4625,201.57,201.51,7.54]
[1759030031329,7.38,201.57,201.51,13.21684433]
[1759030031524,7.38,201.58,201.52,7.54]
[1759030031830,10.82131227,201.57,201.52,7.54]
[1759030032017,7.38,201.58,201.52,7.54]
[1759030032216,3.44131344,201.57,201.51,5.67684433]
[1759030032528,7.38,201.58,201.52,7.54]
[1759030032724,3.44117299,201.57,201.51,5.67684433]
[1759030032916,7.38,201.58,201.52,7.54]
[1759030033121,4.462,201.59,201.52,7.54]
[1759030033122,10.82138757,201.57,201.52,7.54]
[1759030033323,7.38,201.58,201.52,7.54]
[1759030036832,4.4616,201.61,201.54,7.54]
[1759030037132,3.44009487,201.6,201.54,7.54]
[1759030037328,3.44009487,201.6,201.49,77.79473307]
[1759030037329,1.21334433,201.56,201.48,15.89203307]
[1759030037532,11.843,201.55,201.48,7.54]
[1759030039838,7.38,201.52,201.48,7.54]
[1759030040032,4.4633,201.53,201.48,7.54]
[1759030040232,7.38,201.52,201.48,7.54]
[1759030041136,4.4633,201.53,201.48,7.54]
[1759030041332,7.38,201.52,201.48,7.54]
[1759030041532,4.4633,201.53,201.48,7.54]
[1759030041738,7.38,201.52,201.48,7.54]
[1759030041941,4.4633,201.53,201.48,7.54]
[1759030042138,7.38,201.52,201.48,7.54]
[1759030042339,4.4633,201.53,201.48,7.54]
[1759030042540,7.38,201.52,201.48,7.54]
[1759030042739,4.4633,201.53,201.48,7.54]